[Event "*** Titled Tuesday Blitz"]
[Site "Chess.com"]
[Date "2020.12.29"]
[Round "3"]
[White "NateSolon"]
[Black "Lady_Nika"]
[Result "0-1"]
[WhiteElo "2500"]
[BlackElo "2303"]
[TimeControl "180+1"]
[EndTime "10:27:05 PST"]
[Termination "Lady_Nika won by resignation"]

1. d4 {[%clk 0:03:00.9]} 1... d5 {[%clk 0:02:57.8]} 2. c4 {[%clk 0:03:00.2]}
2... e6 {[%clk 0:02:57.5]} 3. Nf3 {[%clk 0:03:00.1]} 3... f5 {[%clk 0:02:57.4]}
4. Nc3 {[%clk 0:02:59.5]} 4... Nf6 {[%clk 0:02:57.3]} 5. Bf4 {[%clk 0:02:59.4]}
5... c6 {[%clk 0:02:57.4]} 6. e3 {[%clk 0:02:59.5]} 6... Bd6 {[%clk 0:02:57.3]}
7. Bxd6 {[%clk 0:02:53.8]} 7... Qxd6 {[%clk 0:02:56.9]} 8. Bd3 {[%clk 0:02:54]}
8... O-O {[%clk 0:02:55.7]} 9. O-O {[%clk 0:02:53.9]} 9... Ne4 {[%clk
0:02:55.9]} 10. Rc1 {[%clk 0:02:46.2]} 10... Nd7 {[%clk 0:02:55.8]} 11. Qb3
{[%clk 0:02:25.8]} 11... Kh8 {[%clk 0:02:53.5]} 12. Rfd1 {[%clk 0:02:24.9]}
12... b6 {[%clk 0:02:45.2]} 13. g3 {[%clk 0:02:21]} 13... Bb7 {[%clk 0:02:43.6]}
14. Qa3 {[%clk 0:02:14.2]} 14... Qxa3 {[%clk 0:02:28.8]} 15. bxa3 {[%clk
0:02:15.1]} 15... Rae8 {[%clk 0:02:27.4]} 16. cxd5 {[%clk 0:02:01.1]} 16... exd5
{[%clk 0:02:26.9]} 17. Ne2 {[%clk 0:01:56.8]} 17... c5 {[%clk 0:02:19.5]} 18.
dxc5 {[%clk 0:01:52.2]} 18... bxc5 {[%clk 0:02:18.5]} 19. Rb1 {[%clk 0:01:50.9]}
19... Bc6 {[%clk 0:02:15.8]} 20. h4 {[%clk 0:01:43.8]} 20... Rb8 {[%clk
0:02:12.8]} 21. Rb3 {[%clk 0:01:28.3]} 21... Ba4 {[%clk 0:02:05.7]} 22. Rxb8
{[%clk 0:01:27.6]} 22... Rxb8 {[%clk 0:02:04.8]} 23. Rb1 {[%clk 0:01:22.8]}
23... Rxb1+ {[%clk 0:02:02.9]} 24. Bxb1 {[%clk 0:01:23.7]} 24... Ndf6 {[%clk
0:02:03]} 25. Nf4 {[%clk 0:01:18.9]} 25... c4 {[%clk 0:01:58.8]} 26. Nd4 {[%clk
0:01:17.6]} 26... Nc3 {[%clk 0:01:50.7]} 27. Bxf5 {[%clk 0:01:17.3]} 27... Nxa2
{[%clk 0:01:50.5]} 28. g4 {[%clk 0:01:16.2]} 28... Nc3 {[%clk 0:01:45.7]} 29. g5
{[%clk 0:01:15]} 29... Ne8 {[%clk 0:01:45.9]} 30. Be6 {[%clk 0:01:13.2]} 30...
Nc7 {[%clk 0:01:45]} 31. Bf7 {[%clk 0:01:12.2]} 31... g6 {[%clk 0:01:42.9]} 32.
h5 {[%clk 0:01:12.1]} 32... gxh5 {[%clk 0:01:42.9]} 33. Nxh5 {[%clk 0:01:08.5]}
33... N7b5 {[%clk 0:01:36.6]} 34. Nxb5 {[%clk 0:00:55.1]} 34... Nxb5 {[%clk
0:01:35]} 35. Bxd5 {[%clk 0:00:45.7]} 35... c3 {[%clk 0:01:34.6]} 36. Be4 {[%clk
0:00:46.2]} 36... c2 {[%clk 0:01:34.6]} 37. Bxc2 {[%clk 0:00:46.2]} 37... Bxc2
{[%clk 0:01:34.8]} 38. f4 {[%clk 0:00:45.8]} 38... Nxa3 {[%clk 0:01:34.7]} 39.
Nf6 {[%clk 0:00:44]} 39... Nc4 {[%clk 0:01:33.3]} 40. e4 {[%clk 0:00:44.4]}
40... Nd6 {[%clk 0:01:31]} 41. e5 {[%clk 0:00:43.1]} 41... Nf5 {[%clk
0:01:31.2]} 42. Kf2 {[%clk 0:00:31]} 42... a5 {[%clk 0:01:31.2]} 0-1

[Event "*** Titled Tuesday Blitz"]
[Site "Chess.com"]
[Date "2020.12.29"]
[Round "3"]
[White "wonderfultime"]
[Black "Aemulus20"]
[Result "1-0"]
[WhiteElo "3019"]
[BlackElo "2598"]
[TimeControl "180+1"]
[EndTime "10:27:06 PST"]
[Termination "wonderfultime won by resignation"]

1. d4 {[%clk 0:03:00.9]} 1... Nf6 {[%clk 0:02:59.6]} 2. Nf3 {[%clk 0:03:01.1]}
2... e6 {[%clk 0:02:59.7]} 3. Bf4 {[%clk 0:03:01.4]} 3... b6 {[%clk 0:03:00.1]}
4. e3 {[%clk 0:03:01.8]} 4... Bb7 {[%clk 0:03:00.6]} 5. Bd3 {[%clk 0:03:02.5]}
5... c5 {[%clk 0:03:01.3]} 6. c3 {[%clk 0:03:02.3]} 6... Be7 {[%clk 0:03:01.9]}
7. O-O {[%clk 0:03:02.2]} 7... O-O {[%clk 0:03:02.6]} 8. h3 {[%clk 0:03:02.8]}
8... d6 {[%clk 0:03:03.3]} 9. Nbd2 {[%clk 0:03:01.4]} 9... Re8 {[%clk
0:03:03.6]} 10. Qe2 {[%clk 0:03:01]} 10... a6 {[%clk 0:03:03.4]} 11. a4 {[%clk
0:03:00.5]} 11... Nbd7 {[%clk 0:03:03.5]} 12. Bh2 {[%clk 0:02:59.9]} 12... cxd4
{[%clk 0:03:03.9]} 13. cxd4 {[%clk 0:02:57.6]} 13... Nf8 {[%clk 0:03:02.6]} 14.
Rfc1 {[%clk 0:02:55.9]} 14... Ng6 {[%clk 0:03:02.2]} 15. e4 {[%clk 0:02:47.6]}
15... Nh5 {[%clk 0:03:00.3]} 16. Qe3 {[%clk 0:02:46.8]} 16... e5 {[%clk
0:02:54.2]} 17. Nc4 {[%clk 0:02:30.7]} 17... Nhf4 {[%clk 0:02:42.2]} 18. Bxf4
{[%clk 0:02:15.9]} 18... Nxf4 {[%clk 0:02:37.7]} 19. Bf1 {[%clk 0:02:16.3]}
19... b5 {[%clk 0:01:57.8]} 20. dxe5 {[%clk 0:02:10]} 20... Nxh3+ {[%clk
0:01:48.3]} 21. gxh3 {[%clk 0:02:07.1]} 21... bxc4 {[%clk 0:01:49]} 22. Bxc4
{[%clk 0:02:04.4]} 22... dxe5 {[%clk 0:01:41.9]} 23. Nxe5 {[%clk 0:02:00.1]}
23... Bg5 {[%clk 0:01:36.6]} 24. Nxf7 {[%clk 0:01:59.8]} 24... Bxe3 {[%clk
0:01:35.5]} 25. Nxd8+ {[%clk 0:02:00]} 25... Kf8 {[%clk 0:01:35.7]} 26. Nxb7
{[%clk 0:01:46.2]} 26... Bxc1 {[%clk 0:01:33.2]} 27. Rxc1 {[%clk 0:01:47.1]}
27... Rxe4 {[%clk 0:01:29.7]} 28. Nc5 {[%clk 0:01:47.3]} 28... Re7 {[%clk
0:01:21.1]} 29. Bxa6 {[%clk 0:01:46.2]} 29... Rb8 {[%clk 0:01:02.3]} 30. Bb5
{[%clk 0:01:43.9]} 30... Ra8 {[%clk 0:00:46.6]} 31. b4 {[%clk 0:01:40.6]} 31...
g6 {[%clk 0:00:38.5]} 32. a5 {[%clk 0:01:38.8]} 32... Kg7 {[%clk 0:00:34.1]} 33.
a6 {[%clk 0:01:28.7]} 33... Rb8 {[%clk 0:00:33.6]} 34. Bd7 {[%clk 0:01:29.2]}
34... Re2 {[%clk 0:00:23.6]} 35. a7 {[%clk 0:01:24.9]} 35... Ra8 {[%clk
0:00:22.8]} 36. Ra1 {[%clk 0:01:25.4]} 1-0

[Event "*** Titled Tuesday Blitz"]
[Site "Chess.com"]
[Date "2020.12.29"]
[Round "3"]
[White "Ariadna_Atreides"]
[Black "rynos0411"]
[Result "0-1"]
[WhiteElo "2077"]
[BlackElo "2318"]
[TimeControl "180+1"]
[EndTime "10:27:10 PST"]
[Termination "rynos0411 won by resignation"]

1. d4 {[%clk 0:02:29.2]} 1... d5 {[%clk 0:02:52.8]} 2. Nf3 {[%clk 0:02:28.1]}
2... Nf6 {[%clk 0:02:52.6]} 3. c4 {[%clk 0:02:24.2]} 3... c6 {[%clk 0:02:52.4]}
4. Nbd2 {[%clk 0:02:19.3]} 4... e6 {[%clk 0:02:50.4]} 5. e3 {[%clk 0:02:06.4]}
5... Bd6 {[%clk 0:02:48]} 6. Bd3 {[%clk 0:02:05.8]} 6... Nbd7 {[%clk 0:02:40.1]}
7. O-O {[%clk 0:02:00.8]} 7... O-O {[%clk 0:02:39]} 8. e4 {[%clk 0:02:00.4]}
8... dxe4 {[%clk 0:02:38.5]} 9. Nxe4 {[%clk 0:01:59.7]} 9... Nxe4 {[%clk
0:02:39]} 10. Bxe4 {[%clk 0:01:59.3]} 10... Nf6 {[%clk 0:02:39.9]} 11. Bc2
{[%clk 0:01:57.7]} 11... h6 {[%clk 0:02:39.4]} 12. Qd3 {[%clk 0:01:56.2]} 12...
b6 {[%clk 0:02:22.5]} 13. b3 {[%clk 0:01:39.8]} 13... Bb7 {[%clk 0:02:14.5]} 14.
Bb2 {[%clk 0:01:39.4]} 14... Re8 {[%clk 0:02:13.3]} 15. Rad1 {[%clk 0:01:35.6]}
15... Qe7 {[%clk 0:02:12.1]} 16. Rfe1 {[%clk 0:01:28.3]} 16... Rad8 {[%clk
0:02:11]} 17. d5 {[%clk 0:01:08.7]} 17... cxd5 {[%clk 0:02:02.6]} 18. cxd5
{[%clk 0:01:03.5]} 18... Bxd5 {[%clk 0:01:46.3]} 19. Bxf6 {[%clk 0:01:00.7]}
19... Qxf6 {[%clk 0:01:47.2]} 20. Qh7+ {[%clk 0:01:00.7]} 20... Kf8 {[%clk
0:01:45.6]} 21. Rxd5 {[%clk 0:00:56.9]} 21... Bxh2+ {[%clk 0:01:43.5]} 22. Kxh2
{[%clk 0:00:40.6]} 22... Rxd5 {[%clk 0:01:41.7]} 23. Kg1 {[%clk 0:00:28.2]}
23... Rc5 {[%clk 0:01:36.3]} 24. Be4 {[%clk 0:00:25.3]} 24... Ke7 {[%clk
0:01:33.9]} 25. Bb7 {[%clk 0:00:19.2]} 25... Rb8 {[%clk 0:01:26]} 26. Qe4 {[%clk
0:00:17.1]} 26... Rc7 {[%clk 0:01:26.1]} 27. Ba6 {[%clk 0:00:16.3]} 27... Qc3
{[%clk 0:01:23.7]} 28. Nd4 {[%clk 0:00:13.4]} 28... Rd8 {[%clk 0:01:17.4]} 29.
Nf5+ {[%clk 0:00:09.5]} 29... Kf8 {[%clk 0:01:17.7]} 30. Ne3 {[%clk 0:00:08.5]}
30... Qxe1+ {[%clk 0:01:13.6]} 0-1

[Event "*** Titled Tuesday Blitz"]
[Site "Chess.com"]
[Date "2020.12.29"]
[Round "3"]
[White "lamomiablanca"]
[Black "mat_kolosowski"]
[Result "0-1"]
[WhiteElo "2297"]
[BlackElo "2696"]
[TimeControl "180+1"]
[EndTime "10:27:12 PST"]
[Termination "mat_kolosowski won by resignation"]

1. e4 {[%clk 0:03:00.9]} 1... e5 {[%clk 0:02:58.6]} 2. Nf3 {[%clk 0:02:58.3]}
2... Nc6 {[%clk 0:02:58.9]} 3. Nc3 {[%clk 0:02:57.5]} 3... Nf6 {[%clk
0:02:56.6]} 4. d4 {[%clk 0:02:57.2]} 4... exd4 {[%clk 0:02:56.6]} 5. Nxd4 {[%clk
0:02:56.5]} 5... Nxe4 {[%clk 0:02:56.6]} 6. Nxe4 {[%clk 0:02:36.9]} 6... Qe7
{[%clk 0:02:56.3]} 7. f3 {[%clk 0:01:48.9]} 7... d5 {[%clk 0:02:52]} 8. Be2
{[%clk 0:01:45.4]} 8... dxe4 {[%clk 0:02:50.3]} 9. Nxc6 {[%clk 0:01:44.8]} 9...
bxc6 {[%clk 0:02:50.2]} 10. O-O {[%clk 0:01:45.3]} 10... Qe5 {[%clk 0:02:28.3]}
11. fxe4 {[%clk 0:01:41.6]} 11... Bd6 {[%clk 0:02:26.4]} 12. Bf4 {[%clk
0:01:37.3]} 12... Qc5+ {[%clk 0:02:23.3]} 13. Kh1 {[%clk 0:01:36.3]} 13... Bxf4
{[%clk 0:02:23.6]} 14. Rxf4 {[%clk 0:01:36.1]} 14... O-O {[%clk 0:02:20.9]} 15.
Bd3 {[%clk 0:01:31.4]} 15... Qe5 {[%clk 0:02:17.8]} 16. Qc1 {[%clk 0:01:31]}
16... Be6 {[%clk 0:02:14.5]} 17. Rf2 {[%clk 0:01:25.6]} 17... c5 {[%clk
0:02:11.7]} 18. b3 {[%clk 0:01:24.5]} 18... c4 {[%clk 0:02:07.9]} 19. bxc4
{[%clk 0:01:22.7]} 19... Rab8 {[%clk 0:02:02.4]} 20. Rb1 {[%clk 0:01:20.1]}
20... c5 {[%clk 0:01:54]} 21. Rb3 {[%clk 0:01:15.7]} 21... Qd4 {[%clk
0:01:48.5]} 22. Re2 {[%clk 0:01:10]} 22... Bxc4 {[%clk 0:01:43.4]} 23. Bxc4
{[%clk 0:01:02.7]} 23... Qxc4 {[%clk 0:01:44.3]} 24. Ree3 {[%clk 0:01:02.5]}
24... Rfe8 {[%clk 0:01:37]} 25. h3 {[%clk 0:00:59.3]} 25... h6 {[%clk
0:01:30.3]} 26. Qd2 {[%clk 0:00:52.7]} 26... Rbd8 {[%clk 0:01:26.9]} 27. Rbd3
{[%clk 0:00:49.1]} 27... Rxd3 {[%clk 0:01:26.5]} 28. cxd3 {[%clk 0:00:48.1]}
28... Qd4 {[%clk 0:01:24.9]} 29. Re2 {[%clk 0:00:43.4]} 29... Rd8 {[%clk
0:01:23.8]} 30. Re3 {[%clk 0:00:31.2]} 30... c4 {[%clk 0:01:21.4]} 31. Rg3
{[%clk 0:00:31]} 31... Qa1+ {[%clk 0:01:09.4]} 32. Kh2 {[%clk 0:00:30.4]} 32...
Qe5 {[%clk 0:01:10.3]} 0-1

[Event "*** Titled Tuesday Blitz"]
[Site "Chess.com"]
[Date "2020.12.29"]
[Round "3"]
[White "BigAl"]
[Black "SantoBlue"]
[Result "0-1"]
[WhiteElo "2455"]
[BlackElo "2858"]
[TimeControl "180+1"]
[EndTime "10:27:14 PST"]
[Termination "SantoBlue won by resignation"]

1. e4 {[%clk 0:02:58.9]} 1... d6 {[%clk 0:02:56.8]} 2. d4 {[%clk 0:02:58.9]}
2... Nf6 {[%clk 0:02:56.8]} 3. Nc3 {[%clk 0:02:59.8]} 3... e5 {[%clk 0:02:57.1]}
4. Nf3 {[%clk 0:03:00.2]} 4... Nbd7 {[%clk 0:02:56.7]} 5. g3 {[%clk 0:02:57.1]}
5... c6 {[%clk 0:02:53.3]} 6. Bg2 {[%clk 0:02:57.3]} 6... Be7 {[%clk 0:02:53.7]}
7. a4 {[%clk 0:02:57.1]} 7... O-O {[%clk 0:02:46.9]} 8. O-O {[%clk 0:02:57.5]}
8... Qc7 {[%clk 0:02:46.6]} 9. h3 {[%clk 0:02:53]} 9... Re8 {[%clk 0:02:46.5]}
10. a5 {[%clk 0:02:51.5]} 10... Rb8 {[%clk 0:02:46.1]} 11. Re1 {[%clk
0:02:49.4]} 11... Nf8 {[%clk 0:02:45.8]} 12. Be3 {[%clk 0:02:29.8]} 12... b5
{[%clk 0:02:45.5]} 13. axb6 {[%clk 0:02:29.6]} 13... axb6 {[%clk 0:02:45.4]} 14.
Nh4 {[%clk 0:02:18.5]} 14... b5 {[%clk 0:02:42.8]} 15. b4 {[%clk 0:02:16.4]}
15... Ng6 {[%clk 0:02:33.7]} 16. Nf5 {[%clk 0:02:13.9]} 16... Bf8 {[%clk
0:02:33.9]} 17. Qd2 {[%clk 0:01:45.4]} 17... exd4 {[%clk 0:02:24.2]} 18. Bxd4
{[%clk 0:01:45]} 18... Ne5 {[%clk 0:02:24.8]} 19. Qg5 {[%clk 0:01:38.7]} 19...
Kh8 {[%clk 0:02:23]} 20. f4 {[%clk 0:01:34.9]} 20... h6 {[%clk 0:02:23.1]} 21.
Nxh6 {[%clk 0:01:31]} 21... Nh7 {[%clk 0:02:23.2]} 22. Qh5 {[%clk 0:01:25.2]}
22... gxh6 {[%clk 0:02:04.4]} 23. fxe5 {[%clk 0:01:18.4]} 23... dxe5 {[%clk
0:02:05.3]} 24. Bc5 {[%clk 0:01:17.2]} 24... Bxc5+ {[%clk 0:02:03.8]} 25. bxc5
{[%clk 0:01:17]} 25... Qe7 {[%clk 0:02:04.6]} 26. Ne2 {[%clk 0:01:07.4]} 26...
Qxc5+ {[%clk 0:01:52.2]} 27. Kh2 {[%clk 0:01:07.7]} 27... Qf8 {[%clk 0:01:53.1]}
28. Rf1 {[%clk 0:01:03.1]} 28... Rb7 {[%clk 0:01:53.2]} 29. Ra8 {[%clk
0:00:58.8]} 29... Rbe7 {[%clk 0:01:48.8]} 30. g4 {[%clk 0:00:51.2]} 30... Bxg4
{[%clk 0:01:39.2]} 31. Rxe8 {[%clk 0:00:51.1]} 31... Bxh5 {[%clk 0:01:38.8]} 32.
Rxf8+ {[%clk 0:00:51.3]} 32... Nxf8 {[%clk 0:01:39.7]} 33. Ng3 {[%clk
0:00:50.1]} 33... Bg6 {[%clk 0:01:39.9]} 34. Rf6 {[%clk 0:00:46.4]} 34... Re6
{[%clk 0:01:38.3]} 35. Rf2 {[%clk 0:00:46.3]} 35... Rd6 {[%clk 0:01:35.9]} 36.
h4 {[%clk 0:00:46.5]} 36... f6 {[%clk 0:01:30.5]} 37. h5 {[%clk 0:00:46.1]}
37... Bh7 {[%clk 0:01:30.9]} 38. Bh3 {[%clk 0:00:45.5]} 38... b4 {[%clk
0:01:27.7]} 39. Bf5 {[%clk 0:00:43.8]} 39... c5 {[%clk 0:01:26.3]} 40. Bxh7
{[%clk 0:00:42]} 40... Nxh7 {[%clk 0:01:26.4]} 41. Nf5 {[%clk 0:00:42.9]} 41...
Rb6 {[%clk 0:01:22.7]} 42. Nxh6 {[%clk 0:00:42.8]} 42... Ng5 {[%clk 0:01:22.2]}
43. Rd2 {[%clk 0:00:39.4]} 43... Nf3+ {[%clk 0:01:22.3]} 0-1

[Event "*** Titled Tuesday Blitz"]
[Site "Chess.com"]
[Date "2020.12.29"]
[Round "3"]
[White "champ2005"]
[Black "bascheyaro"]
[Result "1/2-1/2"]
[WhiteElo "2997"]
[BlackElo "2719"]
[TimeControl "180+1"]
[EndTime "10:27:17 PST"]
[Termination "Game drawn by repetition"]

1. d4 {[%clk 0:03:00.9]} 1... d5 {[%clk 0:02:59.8]} 2. Bf4 {[%clk 0:02:59.5]}
2... Bf5 {[%clk 0:02:58.6]} 3. e3 {[%clk 0:02:57.7]} 3... e6 {[%clk 0:02:58.6]}
4. Nf3 {[%clk 0:02:57.8]} 4... Nf6 {[%clk 0:02:58.5]} 5. c4 {[%clk 0:02:58]}
5... Bxb1 {[%clk 0:02:58.1]} 6. Rxb1 {[%clk 0:02:58.6]} 6... Bb4+ {[%clk
0:02:58.2]} 7. Ke2 {[%clk 0:02:59.2]} 7... O-O {[%clk 0:02:58.3]} 8. g3 {[%clk
0:02:54.5]} 8... Bd6 {[%clk 0:02:57.1]} 9. Qb3 {[%clk 0:02:48.3]} 9... b6 {[%clk
0:02:47.3]} 10. Bg2 {[%clk 0:02:47.8]} 10... Nc6 {[%clk 0:02:42.3]} 11. cxd5
{[%clk 0:02:36.9]} 11... Na5 {[%clk 0:02:41.8]} 12. Qc2 {[%clk 0:02:35.3]} 12...
Bxf4 {[%clk 0:02:40.8]} 13. gxf4 {[%clk 0:02:34.8]} 13... Qxd5 {[%clk
0:02:37.5]} 14. Rhc1 {[%clk 0:02:24.2]} 14... Rac8 {[%clk 0:01:51.4]} 15. Kf1
{[%clk 0:02:20.9]} 15... Qb5+ {[%clk 0:01:41.2]} 16. Kg1 {[%clk 0:02:18.7]}
16... c5 {[%clk 0:01:41.2]} 17. b4 {[%clk 0:02:14.8]} 17... cxb4 {[%clk
0:01:20.4]} 18. Qxc8 {[%clk 0:02:10.7]} 18... Rxc8 {[%clk 0:01:20.9]} 19. Rxc8+
{[%clk 0:02:11.1]} 19... Ne8 {[%clk 0:01:21.1]} 20. Ne5 {[%clk 0:01:39.9]} 20...
Kf8 {[%clk 0:01:19.3]} 21. Rbc1 {[%clk 0:00:45.7]} 21... f6 {[%clk 0:01:13.9]}
22. Nc6 {[%clk 0:00:41.2]} 22... b3 {[%clk 0:01:11]} 23. Nxa5 {[%clk 0:00:22.5]}
23... b2 {[%clk 0:01:11.1]} 24. Rb1 {[%clk 0:00:20.1]} 24... Qd3 {[%clk
0:01:00.6]} 25. Rxb2 {[%clk 0:00:15.1]} 25... Qd1+ {[%clk 0:01:00.6]} 26. Bf1
{[%clk 0:00:13.4]} 26... Qg4+ {[%clk 0:00:58.1]} 27. Bg2 {[%clk 0:00:13.5]}
27... Qd1+ {[%clk 0:00:58.1]} 28. Bf1 {[%clk 0:00:14]} 28... Qg4+ {[%clk
0:00:59]} 29. Bg2 {[%clk 0:00:14.6]} 29... Qd1+ {[%clk 0:00:59.2]} 1/2-1/2

[Event "*** Titled Tuesday Blitz"]
[Site "Chess.com"]
[Date "2020.12.29"]
[Round "3"]
[White "Iskusnyh"]
[Black "Alexander_Moskalenko"]
[Result "0-1"]
[WhiteElo "2577"]
[BlackElo "2839"]
[TimeControl "180+1"]
[EndTime "10:27:21 PST"]
[Termination "Alexander_Moskalenko won on time"]

1. d4 {[%clk 0:03:00.4]} 1... d5 {[%clk 0:02:55.1]} 2. c4 {[%clk 0:03:00.7]}
2... c6 {[%clk 0:02:56]} 3. Nf3 {[%clk 0:03:00.4]} 3... Nf6 {[%clk 0:02:52.4]}
4. e3 {[%clk 0:03:00.6]} 4... Bf5 {[%clk 0:02:50.8]} 5. Nc3 {[%clk 0:03:00.8]}
5... e6 {[%clk 0:02:42.1]} 6. Nh4 {[%clk 0:03:01.1]} 6... Be4 {[%clk 0:02:34.6]}
7. f3 {[%clk 0:02:59.7]} 7... Bg6 {[%clk 0:02:15.1]} 8. Bd2 {[%clk 0:02:59.6]}
8... Nbd7 {[%clk 0:02:14.8]} 9. Nxg6 {[%clk 0:02:57.1]} 9... hxg6 {[%clk
0:02:14.9]} 10. Qc2 {[%clk 0:02:58]} 10... Qc7 {[%clk 0:02:15.4]} 11. O-O-O
{[%clk 0:02:56.6]} 11... Rxh2 {[%clk 0:02:14.1]} 12. Rxh2 {[%clk 0:02:43]} 12...
Qxh2 {[%clk 0:02:15]} 13. e4 {[%clk 0:02:41.2]} 13... dxc4 {[%clk 0:02:14.9]}
14. Bxc4 {[%clk 0:02:25.2]} 14... Be7 {[%clk 0:02:08.2]} 15. Be3 {[%clk
0:02:17]} 15... Nb6 {[%clk 0:02:04.9]} 16. Bf1 {[%clk 0:02:11.9]} 16... Rd8
{[%clk 0:02:05.5]} 17. Kb1 {[%clk 0:02:08.9]} 17... Kf8 {[%clk 0:02:04.5]} 18.
Qb3 {[%clk 0:02:00.2]} 18... Kg8 {[%clk 0:01:59.6]} 19. a4 {[%clk 0:01:57.9]}
19... Qc7 {[%clk 0:02:00.1]} 20. Rc1 {[%clk 0:01:51.8]} 20... Nbd7 {[%clk
0:01:55.7]} 21. d5 {[%clk 0:01:42.5]} 21... exd5 {[%clk 0:01:54.7]} 22. exd5
{[%clk 0:01:25]} 22... Nc5 {[%clk 0:01:53.9]} 23. Bxc5 {[%clk 0:01:16.4]} 23...
Bxc5 {[%clk 0:01:54.8]} 24. dxc6 {[%clk 0:01:15.7]} 24... bxc6 {[%clk 0:01:55]}
25. Bc4 {[%clk 0:01:05.8]} 25... Rb8 {[%clk 0:01:50.2]} 26. Qa2 {[%clk
0:00:50.1]} 26... Bd4 {[%clk 0:01:48.5]} 27. a5 {[%clk 0:00:28.7]} 27... Qe7
{[%clk 0:01:42.2]} 28. Qa4 {[%clk 0:00:18.7]} 28... Qe5 {[%clk 0:01:31.7]} 29.
Ka2 {[%clk 0:00:11.7]} 29... Qd6 {[%clk 0:01:15.5]} 30. Rd1 {[%clk 0:00:09.6]}
30... Rb4 {[%clk 0:01:14.5]} 31. Qa3 {[%clk 0:00:02.4]} 31... c5 {[%clk
0:01:14.8]} 0-1

[Event "*** Titled Tuesday Blitz"]
[Site "Chess.com"]
[Date "2020.12.29"]
[Round "3"]
[White "Tsyhanchuk_Stanislav"]
[Black "AttackSparrow"]
[Result "0-1"]
[WhiteElo "2266"]
[BlackElo "2459"]
[TimeControl "180+1"]
[EndTime "10:27:23 PST"]
[Termination "AttackSparrow won by resignation"]

1. d4 {[%clk 0:03:00.9]} 1... Nf6 {[%clk 0:02:59.3]} 2. Nf3 {[%clk 0:03:00.6]}
2... g6 {[%clk 0:02:59.2]} 3. c4 {[%clk 0:03:00.6]} 3... c5 {[%clk 0:02:58.7]}
4. g3 {[%clk 0:03:00.1]} 4... cxd4 {[%clk 0:02:58.5]} 5. Nxd4 {[%clk 0:03:01]}
5... e5 {[%clk 0:02:58.7]} 6. Nc2 {[%clk 0:02:59.4]} 6... d5 {[%clk 0:02:58.5]}
7. cxd5 {[%clk 0:02:58.2]} 7... Qxd5 {[%clk 0:02:59.4]} 8. Qxd5 {[%clk
0:02:56.7]} 8... Nxd5 {[%clk 0:03:00.3]} 9. Bg2 {[%clk 0:02:57.1]} 9... Nb4
{[%clk 0:03:00.5]} 10. Nxb4 {[%clk 0:02:56.6]} 10... Bxb4+ {[%clk 0:03:01.4]}
11. Bd2 {[%clk 0:02:56.9]} 11... Bxd2+ {[%clk 0:02:57.5]} 12. Nxd2 {[%clk
0:02:57.8]} 12... Nc6 {[%clk 0:02:56.8]} 13. Rc1 {[%clk 0:02:56.7]} 13... Bd7
{[%clk 0:02:53.2]} 14. O-O {[%clk 0:02:51.9]} 14... Ke7 {[%clk 0:02:52.9]} 15.
e3 {[%clk 0:02:51]} 15... Rac8 {[%clk 0:02:51.9]} 16. Nc4 {[%clk 0:02:48.9]}
16... f6 {[%clk 0:02:51.3]} 17. Rfd1 {[%clk 0:02:43.6]} 17... Rhd8 {[%clk
0:02:50.3]} 18. Nd6 {[%clk 0:02:25.2]} 18... Rc7 {[%clk 0:02:44.8]} 19. Nb5
{[%clk 0:01:55.7]} 19... Rcc8 {[%clk 0:02:40.1]} 20. Nd6 {[%clk 0:01:20.8]}
20... Rb8 {[%clk 0:02:38.5]} 21. b3 {[%clk 0:00:55.2]} 21... Nb4 {[%clk
0:02:19.8]} 22. Nxb7 {[%clk 0:00:50.3]} 22... Rdc8 {[%clk 0:02:01.5]} 23. Nc5
{[%clk 0:00:39.9]} 23... Be8 {[%clk 0:01:43.8]} 24. a3 {[%clk 0:00:34.7]} 24...
Na2 {[%clk 0:01:03.2]} 25. Ra1 {[%clk 0:00:12.5]} 25... Nc3 {[%clk 0:01:01.5]}
26. Rd3 {[%clk 0:00:04.8]} 26... Rxc5 {[%clk 0:01:00.9]} 27. Rc1 {[%clk
0:00:05.3]} 27... Ne2+ {[%clk 0:01:01]} 0-1

[Event "*** Titled Tuesday Blitz"]
[Site "Chess.com"]
[Date "2020.12.29"]
[Round "3"]
[White "Alexey_Ustinov"]
[Black "AdarshIsMe"]
[Result "0-1"]
[WhiteElo "2474"]
[BlackElo "2204"]
[TimeControl "180+1"]
[EndTime "10:27:30 PST"]
[Termination "AdarshIsMe won by resignation"]

1. d4 {[%clk 0:03:00.9]} 1... Nf6 {[%clk 0:02:57.3]} 2. Nf3 {[%clk 0:03:00.7]}
2... e6 {[%clk 0:02:55.5]} 3. Bf4 {[%clk 0:03:00.9]} 3... d5 {[%clk 0:02:54.3]}
4. e3 {[%clk 0:03:01.3]} 4... Bd6 {[%clk 0:02:54.7]} 5. Ne5 {[%clk 0:03:00.2]}
5... O-O {[%clk 0:02:54.4]} 6. Nd2 {[%clk 0:02:59.2]} 6... c5 {[%clk 0:02:49.7]}
7. c3 {[%clk 0:02:58.3]} 7... Nc6 {[%clk 0:02:49.6]} 8. Ndf3 {[%clk 0:02:49.5]}
8... Ne4 {[%clk 0:02:46.8]} 9. Bd3 {[%clk 0:02:44.5]} 9... f6 {[%clk 0:02:38.3]}
10. Nxc6 {[%clk 0:02:42.4]} 10... bxc6 {[%clk 0:02:39.2]} 11. Bxd6 {[%clk
0:02:30.9]} 11... Qxd6 {[%clk 0:02:40.1]} 12. Bxe4 {[%clk 0:02:29.4]} 12... dxe4
{[%clk 0:02:41]} 13. Nd2 {[%clk 0:02:28.8]} 13... f5 {[%clk 0:02:32.8]} 14. dxc5
{[%clk 0:02:22.4]} 14... Qxc5 {[%clk 0:02:22.6]} 15. Nb3 {[%clk 0:02:22.2]}
15... Qb6 {[%clk 0:02:01.8]} 16. Qd4 {[%clk 0:02:16.2]} 16... Ba6 {[%clk
0:01:55.6]} 17. O-O-O {[%clk 0:02:05.7]} 17... Bd3 {[%clk 0:01:52.8]} 18. Qxb6
{[%clk 0:01:56.9]} 18... axb6 {[%clk 0:01:52.3]} 19. a3 {[%clk 0:01:57.8]} 19...
e5 {[%clk 0:01:37.8]} 20. g3 {[%clk 0:01:54.5]} 20... f4 {[%clk 0:01:37.2]} 21.
exf4 {[%clk 0:01:48.1]} 21... exf4 {[%clk 0:01:37.4]} 22. Rd2 {[%clk 0:01:46.1]}
22... c5 {[%clk 0:01:35.2]} 23. Kd1 {[%clk 0:01:40.8]} 23... c4 {[%clk
0:01:30.6]} 24. Nd4 {[%clk 0:01:37.8]} 24... e3 {[%clk 0:01:30.6]} 25. fxe3
{[%clk 0:01:32]} 25... fxe3 {[%clk 0:01:31.5]} 26. Rg2 {[%clk 0:01:28.2]} 26...
Rad8 {[%clk 0:01:31.6]} 27. Re1 {[%clk 0:01:25.4]} 27... Rf2 {[%clk 0:01:29.1]}
28. Reg1 {[%clk 0:01:18]} 28... e2+ {[%clk 0:01:22.8]} 29. Kd2 {[%clk 0:01:12]}
29... Rdf8 {[%clk 0:01:03.4]} 30. Rxf2 {[%clk 0:01:00.4]} 30... Rxf2 {[%clk
0:01:02.6]} 31. Re1 {[%clk 0:01:00.5]} 31... Rxh2 {[%clk 0:00:59.5]} 32. Nxe2
{[%clk 0:01:00.8]} 32... Bxe2 {[%clk 0:00:55.4]} 33. Rxe2 {[%clk 0:01:00]} 33...
Rxe2+ {[%clk 0:00:56.3]} 34. Kxe2 {[%clk 0:00:59.3]} 34... g5 {[%clk 0:00:56.9]}
35. a4 {[%clk 0:00:57.6]} 35... h5 {[%clk 0:00:55.7]} 36. Ke3 {[%clk 0:00:57.4]}
36... Kf7 {[%clk 0:00:55]} 37. Kd4 {[%clk 0:00:57.4]} 37... Ke6 {[%clk
0:00:49.1]} 38. Ke4 {[%clk 0:00:52.2]} 38... h4 {[%clk 0:00:43.8]} 39. gxh4
{[%clk 0:00:51.7]} 39... gxh4 {[%clk 0:00:44.7]} 40. Kf4 {[%clk 0:00:51.4]}
40... Kd5 {[%clk 0:00:45.3]} 41. Kg4 {[%clk 0:00:51.7]} 41... Ke4 {[%clk
0:00:45.9]} 42. Kxh4 {[%clk 0:00:52.2]} 42... Kd3 {[%clk 0:00:46.5]} 43. Kg5
{[%clk 0:00:51.7]} 43... Kc2 {[%clk 0:00:46.8]} 44. Kf5 {[%clk 0:00:52.1]} 44...
Kxb2 {[%clk 0:00:47.1]} 45. a5 {[%clk 0:00:53]} 45... bxa5 {[%clk 0:00:46.8]}
0-1